Department Family,Entity,Date of Payment,Expense Type,Expense Area,Supplier,Voluntary & Community Sector,SME Class,Sole Trader,Transaction number,Purchasing Item Text,Postal Code,Amount in Sterling,Grant?
"Housing, Communities & Local Government",PINS,04/01/2022,NSI Fees & Expenses,Inspectors Costs,GDPR REDACTION,,Micro,,2100097950,NSI Fees & Expenses,SL5 9EA,"-3,068.76",
"Housing, Communities & Local Government",PINS,04/01/2022,DEV Exp (AUC) Intngble Software Acq Cost,Digital Services,HAYS SPECIALIST RECRUITMENT LTD,,Large,,5106278412,Project support Officer ,NW1 2AF,533.61,
"Housing, Communities & Local Government",PINS,04/01/2022,Agency Staff,Human Resources,HAYS SPECIALIST RECRUITMENT LTD,,Large,,5106278404,HR Ops Admin Officer ,NW1 2AF,539.78,
"Housing, Communities & Local Government",PINS,04/01/2022,Agency Staff,"Finance, Commercial & Business Support",REED SPECIALIST RECRUITMENT LTD,,Large,,5106278429,AA Storekeeper  ,SW20 0BA,549.23,
"Housing, Communities & Local Government",PINS,04/01/2022,Agency Staff,"Finance, Commercial & Business Support",HAYS SPECIALIST RECRUITMENT LTD,,Large,,5106278415,Commercial Resource  ,NW1 2AF,"2,124.76",
"Housing, Communities & Local Government",PINS,04/01/2022,Specialist Technical Support,LKD Data Governance,HAYS SPECIALIST RECRUITMENT LTD,,Large,,5106278413,DPIA Analyst  ,NW1 2AF,"2,172.64",
"Housing, Communities & Local Government",PINS,04/01/2022,Specialist Technical Support,Change Portfolio Workstreams,HAYS SPECIALIST RECRUITMENT LTD,,Large,,5106278433,Specialist Resource,NW1 2AF,"2,377.49",
"Housing, Communities & Local Government",PINS,04/01/2022,Agency Staff,"Finance, Commercial & Business Support",HAYS SPECIALIST RECRUITMENT LTD,,Large,,5106278443,Agency Support Staff,NW1 2AF,"2,399.40",
"Housing, Communities & Local Government",PINS,04/01/2022,Specialist Technical Support,Digital Services,HAYS SPECIALIST RECRUITMENT LTD,,Large,,5106278416,O365 specialist  ,NW1 2AF,"2,497.49",
"Housing, Communities & Local Government",PINS,04/01/2022,NSI Fees & Expenses,Inspectors Costs,GDPR REDACTION,,Micro,,5106278435,NSI Fees & Expenses,SL5 9EA,"3,068.76",
"Housing, Communities & Local Government",PINS,04/01/2022,Specialist Technical Support,Digital Services,HAYS SPECIALIST RECRUITMENT LTD,,Large,,5106278440,Information Security Architect,NW1 2AF,"4,311.22",
"Housing, Communities & Local Government",PINS,05/01/2022,Agency Staff,Human Resources,HAYS SPECIALIST RECRUITMENT LTD,,Large,,5106278475,HR Ops Admin Officer ,NW1 2AF,359.86,
"Housing, Communities & Local Government",PINS,05/01/2022,Agency Staff,Director of Strategy,REED SPECIALIST RECRUITMENT LTD,,Large,,5106278482,PA Role ,SW20 0BA,364.72,
"Housing, Communities & Local Government",PINS,05/01/2022,Agency Staff,Operations Group 2,REED SPECIALIST RECRUITMENT LTD,,Large,,5106278427,Agency Support Staff,SW20 0BA,403.24,
"Housing, Communities & Local Government",PINS,05/01/2022,Agency Staff,Operations Group 2,REED SPECIALIST RECRUITMENT LTD,,Large,,5106278182,Agency Support Staff,SW20 0BA,464.60,
"Housing, Communities & Local Government",PINS,05/01/2022,Agency Staff,LKD Finance and Commercial,REED SPECIALIST RECRUITMENT LTD,,Large,,5106278458,AA Storekeeper  ,SW20 0BA,549.23,
"Housing, Communities & Local Government",PINS,05/01/2022,Agency Staff,Digital Services,REED SPECIALIST RECRUITMENT LTD,,Large,,5106278462,Contract Support Officer  ,SW20 0BA,664.33,
"Housing, Communities & Local Government",PINS,05/01/2022,Agency Staff,"Finance, Commercial & Business Support",REED SPECIALIST RECRUITMENT LTD,,Large,,5106278392,Commercial EO  ,SW20 0BA,712.44,
"Housing, Communities & Local Government",PINS,05/01/2022,Agency Staff,Digital Services,REED SPECIALIST RECRUITMENT LTD,,Large,,5106278423,Contract Support Officer  ,SW20 0BA,847.60,
"Housing, Communities & Local Government",PINS,05/01/2022,Agency Staff,"Finance, Commercial & Business Support",REED SPECIALIST RECRUITMENT LTD,,Large,,5106278432,Commercial EO  ,SW20 0BA,878.68,
"Housing, Communities & Local Government",PINS,05/01/2022,Agency Staff,Change Portfolio Workstreams,REED SPECIALIST RECRUITMENT LTD,,Large,,5106278428,PA Role ,SW20 0BA,994.68,
"Housing, Communities & Local Government",PINS,05/01/2022,Web Services,Digital Services,ZSAH LTD,,Small,,5106278460,Hosting services,SW7 3HE,"1,392.25",
"Housing, Communities & Local Government",PINS,05/01/2022,NSI Fees & Expenses,Inspectors Costs,ENERGIA CONSULTANTS LTD,,Micro,,5106278476,NSI Fees & Expenses,GL6 0SA,"1,850.05",
"Housing, Communities & Local Government",PINS,05/01/2022,NSI Fees & Expenses,Inspectors Costs,GDPR REDACTION,,Micro,,5106278420,NSI Fees & Expenses,BH15 1HH,"2,024.10",
"Housing, Communities & Local Government",PINS,05/01/2022,Mobile phone costs,Digital Services,ORBIS PROTECT,,Large,,5106278442,Lone Worker Protection Services,UB8 1QG,"2,298.96",
"Housing, Communities & Local Government",PINS,05/01/2022,NSI Fees & Expenses,Inspectors Costs,GDPR REDACTION,,Micro,,5106278472,NSI Fees & Expenses,SL5 9EA,"3,188.76",
"Housing, Communities & Local Government",PINS,05/01/2022,Specialist Technical Support,Digital Services,REED SPECIALIST RECRUITMENT LTD,,Large,,5106278417,Information Security Manager,SW20 0BA,"3,465.00",
"Housing, Communities & Local Government",PINS,05/01/2022,Specialist Technical Support,Digital Services,REED SPECIALIST RECRUITMENT LTD,,Large,,5106278468,Information Security Manager,SW20 0BA,"3,465.00",
"Housing, Communities & Local Government",PINS,05/01/2022,IT Systems Testing & Auditing,Digital Services,FIDUS INFORMATION SECURITY LTD,,Small,,5106278474,ICT Health Checks,CB4 0WS,"3,600.00",
"Housing, Communities & Local Government",PINS,05/01/2022,NSI Fees & Expenses,Inspectors Costs,GDPR REDACTION,,Micro,,5106278483,NSI Fees & Expenses,BH15 1HH,"3,653.96",
"Housing, Communities & Local Government",PINS,05/01/2022,Specialist Technical Support,Change Portfolio Workstreams,REED SPECIALIST RECRUITMENT LTD,,Large,,5106278425,SAP Data Engineer,SW20 0BA,"3,795.00",
"Housing, Communities & Local Government",PINS,05/01/2022,Specialist Technical Support,Change Portfolio Workstreams,REED SPECIALIST RECRUITMENT LTD,,Large,,5106278466,SAP Data Engineer,SW20 0BA,"3,795.00",
"Housing, Communities & Local Government",PINS,05/01/2022,NSI Fees & Expenses,Inspectors Costs,GDPR REDACTION,,Small,,5106278444,NSI Fees & Expenses,GL20 7EE,"4,037.76",
"Housing, Communities & Local Government",PINS,05/01/2022,Training,Human Resources,Foreningen Menneskebiblioteket,,Small,,5106278473,Human Library Workshops,2200,"7,500.00",
"Housing, Communities & Local Government",PINS,06/01/2022,Payroll Services,Human Resources,CGI IT UK LIMITED,,Large,,5106278502,Payroll Service 2021/21,CF31 9AP,536.45,
"Housing, Communities & Local Government",PINS,06/01/2022,Agency Staff,Operations Group 1,REED SPECIALIST RECRUITMENT LTD,,Large,,5106278465,Agency Support Staff,SW20 0BA,632.08,
"Housing, Communities & Local Government",PINS,06/01/2022,Agency Staff,Operations Group 1,REED SPECIALIST RECRUITMENT LTD,,Large,,5106278421,Agency Support Staff,SW20 0BA,634.96,
"Housing, Communities & Local Government",PINS,06/01/2022,Agency Staff,"Finance, Commercial & Business Support",REED SPECIALIST RECRUITMENT LTD,,Large,,5106278467,Agency Support Staff,SW20 0BA,643.42,
"Housing, Communities & Local Government",PINS,06/01/2022,Specialist Technical Support,Digital Services,HAYS SPECIALIST RECRUITMENT LTD,,Large,,5106278488,Apps Ops Engineer ,NW1 2AF,828.65,
"Housing, Communities & Local Government",PINS,06/01/2022,Specialist Technical Support,Digital Services,HAYS SPECIALIST RECRUITMENT LTD,,Large,,5106278495,Apps Ops Engineer ,NW1 2AF,"1,381.08",
"Housing, Communities & Local Government",PINS,06/01/2022,DEV Exp (AUC) Intngble Software Acq Cost,Digital Services,DIFRENT LTD,,Medium,,5106278523,PM/PA - Appeals,E1 6JE,"1,440.00",
"Housing, Communities & Local Government",PINS,06/01/2022,DEV Exp (AUC) Intngble Software Acq Cost,Digital Services,DIFRENT LTD,,Medium,,5106278523,PM/PA - Appeals,E1 6JE,"1,760.00",
"Housing, Communities & Local Government",PINS,06/01/2022,Agency Staff,"Finance, Commercial & Business Support",HAYS SPECIALIST RECRUITMENT LTD,,Large,,5106278463,Agency Support Staff,NW1 2AF,"1,919.52",
"Housing, Communities & Local Government",PINS,06/01/2022,Office machinery consumables,LKD Finance and Commercial,X M A LIMITED,,Data Not Provided,,5106278487,IT consumables 2021-2022  ,NG11 7EP,"2,802.48",
"Housing, Communities & Local Government",PINS,06/01/2022,Payroll Services,Human Resources,CGI IT UK LIMITED,,Large,,5106278493,Payroll Service 2021/21,CF31 9AP,"4,136.53",
"Housing, Communities & Local Government",PINS,06/01/2022,DEV Exp (AUC) Intngble Software Acq Cost,Digital Services,DIFRENT LTD,,Medium,,5106278496,PM/PA - Applications,E1 6JE,"4,800.00",
"Housing, Communities & Local Government",PINS,06/01/2022,DEV Exp (AUC) Intngble Software Acq Cost,Digital Services,DIFRENT LTD,,Medium,,5106278490,Applications Service - Beta Phase 1a/1b,E1 6JE,"72,550.00",
"Housing, Communities & Local Government",PINS,06/01/2022,Specialist Technical Support,Innovation,Digi2al Limited???,,Medium,,5106278526,Knowledge Innovation Project Discovery,BN3 2FN,"73,302.00",
"Housing, Communities & Local Government",PINS,06/01/2022,DEV Exp (AUC) Intngble Software Acq Cost,Digital Services,DIFRENT LTD,,Medium,,5106278489,Appeals Beta Q3 2021/22,E1 6JE,"97,450.00",
"Housing, Communities & Local Government",PINS,07/01/2022,DEV Exp (AUC) Intngble Software Acq Cost,Digital Services,HAYS SPECIALIST RECRUITMENT LTD,,Large,,5106278032,Project support Officer ,NW1 2AF,-752.70,
"Housing, Communities & Local Government",PINS,07/01/2022,Agency Staff,Operations Group 1,HAYS SPECIALIST RECRUITMENT LTD,,Large,,5106278529,Agency Support Staff,NW1 2AF,720.00,
"Housing, Communities & Local Government",PINS,07/01/2022,Agency Staff,Operations Group 1,HAYS SPECIALIST RECRUITMENT LTD,,Large,,5106278533,Agency Support Staff,NW1 2AF,720.00,
"Housing, Communities & Local Government",PINS,07/01/2022,Agency Staff,Operations Group 2,HAYS SPECIALIST RECRUITMENT LTD,,Large,,5106278535,Casework Officer  ,NW1 2AF,720.00,
"Housing, Communities & Local Government",PINS,07/01/2022,Agency Staff,Resourcing & Process,HAYS SPECIALIST RECRUITMENT LTD,,Large,,5106278506,Agency Support Staff,NW1 2AF,720.00,
"Housing, Communities & Local Government",PINS,07/01/2022,Agency Staff,Resourcing & Process,HAYS SPECIALIST RECRUITMENT LTD,,Large,,5106278587,Agency Support Staff,NW1 2AF,720.00,
"Housing, Communities & Local Government",PINS,07/01/2022,Agency Staff,Human Resources,HAYS SPECIALIST RECRUITMENT LTD,,Large,,5106278532,HR Ops Admin Officer ,NW1 2AF,899.64,
"Housing, Communities & Local Government",PINS,07/01/2022,Agency Staff,Human Resources,HAYS SPECIALIST RECRUITMENT LTD,,Large,,5106278541,HR Ops Admin Officer ,NW1 2AF,899.64,
"Housing, Communities & Local Government",PINS,07/01/2022,Agency Staff,Human Resources,HAYS SPECIALIST RECRUITMENT LTD,,Large,,5106278542,HR Ops Admin Officer ,NW1 2AF,899.64,
"Housing, Communities & Local Government",PINS,07/01/2022,Specialist Technical Support,Digital Services,HAYS SPECIALIST RECRUITMENT LTD,,Large,,5106278531,O365 specialist  ,NW1 2AF,"1,873.12",
"Housing, Communities & Local Government",PINS,07/01/2022,Specialist Technical Support,Digital Services,HAYS SPECIALIST RECRUITMENT LTD,,Large,,5106278534,Information Security Architect,NW1 2AF,"3,233.41",
"Housing, Communities & Local Government",PINS,07/01/2022,NSI Fees & Expenses,Inspectors Costs,GDPR REDACTION,,Data Not Provided,,5106278546,NSI Fees & Expenses,CB3 0HS,"3,258.85",
"Housing, Communities & Local Government",PINS,07/01/2022,NSI Fees & Expenses,LKD NSI,STAR PLANNING & DEVELOPMENT LTD,,Micro,,5106278461,NSI Fees & Expenses,B14 6BX,"3,319.02",
"Housing, Communities & Local Government",PINS,07/01/2022,NSI Fees & Expenses,Inspectors Costs,GDPR REDACTION,,Micro,,5106278422,NSI Fees & Expenses,BH15 1HH,"3,920.99",
"Housing, Communities & Local Government",PINS,07/01/2022,NSI Fees & Expenses,Inspectors Costs,GDPR REDACTION,,Small,,5106278539,NSI Fees & Expenses,SA61 2SJ,"4,051.15",
"Housing, Communities & Local Government",PINS,07/01/2022,Specialist Technical Support,Change Portfolio Workstreams,METHODS BUSINESS AND DIGITAL TECH,,Medium,,5106278543,Specialist Resource,EC1N 8TS,"10,890.00",
"Housing, Communities & Local Government",PINS,07/01/2022,Vehicle hire,LKD Inspector Costs,ENTERPRISE RENT-A-CAR,,Large,,5106278545,Car Hire 2021-2022,TW20 9FB,"11,137.68",
"Housing, Communities & Local Government",PINS,10/01/2022,Agency Staff,Operations Group 1,HAYS SPECIALIST RECRUITMENT LTD,,Large,,5106278588,Agency Support Staff,NW1 2AF,576.00,
"Housing, Communities & Local Government",PINS,10/01/2022,Agency Staff,Human Resources,REED SPECIALIST RECRUITMENT LTD,,Large,,5106278609,HR Ops Team Leader,SW20 0BA,616.03,
"Housing, Communities & Local Government",PINS,10/01/2022,Agency Staff,Operations Group 1,HAYS SPECIALIST RECRUITMENT LTD,,Large,,5106278590,Agency Support Staff,NW1 2AF,720.00,
"Housing, Communities & Local Government",PINS,10/01/2022,Agency Staff,Operations Group 1,HAYS SPECIALIST RECRUITMENT LTD,,Large,,5106278591,Agency Support Staff,NW1 2AF,720.00,
"Housing, Communities & Local Government",PINS,10/01/2022,Agency Staff,Operations Group 2,HAYS SPECIALIST RECRUITMENT LTD,,Large,,5106278592,Casework Officer  ,NW1 2AF,720.00,
"Housing, Communities & Local Government",PINS,10/01/2022,Agency Staff,Human Resources,REED SPECIALIST RECRUITMENT LTD,,Large,,5106278610,HR Ops Team Leader,SW20 0BA,"1,510.27",
"Housing, Communities & Local Government",PINS,10/01/2022,Legal Fees,Innovation & Improvement,GOVERNMENT LEGAL DEPT,,Public Bodies,,5106278593,Disbursements,WC2B 4TS,"26,619.13",
"Housing, Communities & Local Government",PINS,10/01/2022,Publications,Innovation & Improvement,HAYMARKET MEDIA GROUP LIMITED,,Data Not Provided,,5106278600,Planning Resource Magazine Corporate Sub,TW1 3SP,"29,610.00",
"Housing, Communities & Local Government",PINS,10/01/2022,Legal Fees,Innovation & Improvement,GOVERNMENT LEGAL DEPT,,Public Bodies,,5106278593,Fees & Charges,WC2B 4TS,"72,201.00",
"Housing, Communities & Local Government",PINS,11/01/2022,Agency Staff,"Finance, Commercial & Business Support",REED SPECIALIST RECRUITMENT LTD,,Large,,5106278650,Agency Support Staff,SW20 0BA,369.96,
"Housing, Communities & Local Government",PINS,11/01/2022,NSI Fees & Expenses,Inspectors Costs,ELDNAR LTD,,Micro,,5106278636,NSI Fees & Expenses,DY12 2FB,589.74,
"Housing, Communities & Local Government",PINS,11/01/2022,NSI Fees & Expenses,Inspectors Costs,GDPR REDACTION,,Small,,5106278630,NSI Fees & Expenses,RG41 3HL,"1,005.60",
"Housing, Communities & Local Government",PINS,11/01/2022,NSI Fees & Expenses,Inspectors Costs,GDPR REDACTION,,Data Not Provided,,5106278641,NSI Fees & Expenses,S36 6HT,"1,135.95",
"Housing, Communities & Local Government",PINS,11/01/2022,Specialist Technical Support,Digital Services,REED SPECIALIST RECRUITMENT LTD,,Large,,5106278626,Full Stack Software Developer ,SW20 0BA,"2,031.84",
"Housing, Communities & Local Government",PINS,11/01/2022,Specialist Technical Support,Digital Services,REED SPECIALIST RECRUITMENT LTD,,Large,,5106278627,Information Security Manager,SW20 0BA,"2,079.00",
"Housing, Communities & Local Government",PINS,11/01/2022,NSI Fees & Expenses,Inspectors Costs,GDPR REDACTION,,Micro,,5106278652,NSI Fees & Expenses,M32 8QU,"2,363.39",
"Housing, Communities & Local Government",PINS,11/01/2022,Web Services,Digital Services,AGENTO DIGITAL LTD,,Small,,5106278594,Intranet Hosting contract  ,IG8 7RF,"2,880.00",
"Housing, Communities & Local Government",PINS,11/01/2022,NSI Fees & Expenses,Inspectors Costs,GDPR REDACTION,,Small,,5106278645,NSI Fees & Expenses,WS13 7DH,"3,004.14",
"Housing, Communities & Local Government",PINS,11/01/2022,Specialist Technical Support,Digital Services,REED SPECIALIST RECRUITMENT LTD,,Large,,5106278618,Full Stack Software Developer ,SW20 0BA,"3,386.40",
"Housing, Communities & Local Government",PINS,11/01/2022,Specialist Technical Support,Digital Services,REED SPECIALIST RECRUITMENT LTD,,Large,,5106278634,Full Stack Software Developer ,SW20 0BA,"3,386.40",
"Housing, Communities & Local Government",PINS,11/01/2022,Travel and Subsistence Account,Inspectors Costs,CORPORATE TRAVEL MANAGEMENT(NORTH)L,,Small,,5106278640,Rail travel,BD1 5HQ,"3,809.45",
"Housing, Communities & Local Government",PINS,11/01/2022,Specialist Technical Support,Change Portfolio Workstreams,METHODS BUSINESS AND DIGITAL TECH,,Medium,,5106278643,Specialist Resource,EC1N 8TS,"11,340.00",
"Housing, Communities & Local Government",PINS,11/01/2022,Travel and Subsistence Account,Inspectors Costs,CORPORATE TRAVEL MANAGEMENT(NORTH)L,,Small,,5106278640,Hotel accommodation,BD1 5HQ,"14,897.11",
"Housing, Communities & Local Government",PINS,12/01/2022,NSI Fees & Expenses,Inspectors Costs,ELDNAR LTD,,Micro,,5106278707,NSI Fees & Expenses,DY12 2FB,420.00,
"Housing, Communities & Local Government",PINS,12/01/2022,Agency Staff,Operations Group 2,HAYS SPECIALIST RECRUITMENT LTD,,Large,,5106278702,Casework Officer  ,NW1 2AF,432.00,
"Housing, Communities & Local Government",PINS,12/01/2022,Physical Storage,LKD Finance and Commercial,RESTORE PLC,,Large,,5106278706,Offsite Storage 2021-2022,RH1 5DY,772.94,
"Housing, Communities & Local Government",PINS,12/01/2022,DEV Exp (AUC) Intngble Software Acq Cost,Digital Services,DIFRENT LTD,,Medium,,5106278708,PM/PA - Applications,E1 6JE,"1,360.00",
"Housing, Communities & Local Government",PINS,12/01/2022,Specialist Technical Support,Digital Services,HAYS SPECIALIST RECRUITMENT LTD,,Large,,5106278661,Digital Trainer  ,NW1 2AF,"1,438.51",
"Housing, Communities & Local Government",PINS,12/01/2022,NSI Fees & Expenses,Inspectors Costs,GDPR REDACTION,,Data Not Provided,,5106278675,NSI Fees & Expenses,DE72 3QP,"1,817.34",
"Housing, Communities & Local Government",PINS,12/01/2022,Specialist Technical Support,Change Portfolio Workstreams,REED SPECIALIST RECRUITMENT LTD,,Large,,5106278617,SAP Data Engineer,SW20 0BA,"2,277.00",
"Housing, Communities & Local Government",PINS,12/01/2022,Specialist Technical Support,Digital Services,HAYS SPECIALIST RECRUITMENT LTD,,Large,,5106278659,Information Security Architect,NW1 2AF,"4,311.22",
"Housing, Communities & Local Government",PINS,12/01/2022,DEV Exp (AUC) Intngble Software Acq Cost,Digital Services,DIFRENT LTD,,Medium,,5106278708,PM/PA - Applications,E1 6JE,"11,840.00",
"Housing, Communities & Local Government",PINS,12/01/2022,DEV Exp (AUC) Intngble Software Acq Cost,Digital Services,DIFRENT LTD,,Medium,,5106278708,PM/PA - Appeals,E1 6JE,"13,200.00",
"Housing, Communities & Local Government",PINS,13/01/2022,Translations,LKD Transport,TROSOL CYFYNGEDIG,,Small,,5106278731,Welsh Translation Service ,CF11 9LJ,273.41,
"Housing, Communities & Local Government",PINS,13/01/2022,NSI Fees & Expenses,Inspectors Costs,ELDNAR LTD,,Micro,,5106278746,NSI Fees & Expenses,DY12 2FB,420.00,
"Housing, Communities & Local Government",PINS,13/01/2022,DEV Exp (AUC) Intngble Software Acq Cost,Digital Services,HAYS SPECIALIST RECRUITMENT LTD,,Large,,5106278725,Project support Officer ,NW1 2AF,533.61,
"Housing, Communities & Local Government",PINS,13/01/2022,Agency Staff,Digital Services,HAYS SPECIALIST RECRUITMENT LTD,,Large,,5106278726,Supplier & Contracts Officer ,NW1 2AF,"2,283.50",
"Housing, Communities & Local Government",PINS,13/01/2022,Specialist Technical Support,Change Portfolio Workstreams,HAYS SPECIALIST RECRUITMENT LTD,,Large,,5106278728,Specialist Resource,NW1 2AF,"2,377.49",
"Housing, Communities & Local Government",PINS,13/01/2022,NSI Fees & Expenses,Inspectors Costs,GDPR REDACTION,,Small,,5106278740,NSI Fees & Expenses,RG24 8SA,"3,408.25",
"Housing, Communities & Local Government",PINS,13/01/2022,Courier Services,Environmental Services (EIA),CABINET OFFICE,,Public Bodies,,5106278655,Mailshot Services,FY5 3TA,"28,208.60",
"Housing, Communities & Local Government",PINS,14/01/2022,Agency Staff,Operations Group 1,HAYS SPECIALIST RECRUITMENT LTD,,Large,,5106278767,Agency Support Staff,NW1 2AF,576.00,
"Housing, Communities & Local Government",PINS,14/01/2022,Agency Staff,Resourcing & Process,HAYS SPECIALIST RECRUITMENT LTD,,Large,,5106278762,Agency Support Staff,NW1 2AF,576.00,
"Housing, Communities & Local Government",PINS,14/01/2022,IT - Service Contracts,Digital Services,MHCLG,,Public Bodies,,5106278771,Daisy Circuits: Park Secondary,HP2 4XN,812.49,
"Housing, Communities & Local Government",PINS,14/01/2022,Agency Staff,Human Resources,HAYS SPECIALIST RECRUITMENT LTD,,Large,,5106278760,HR Ops Admin Officer ,NW1 2AF,899.64,
"Housing, Communities & Local Government",PINS,14/01/2022,IT - Service Contracts,Digital Services,MHCLG,,Public Bodies,,5106278771,Daisy Circuits: TQH Secondary Circuit,HP2 4XN,"1,048.08",
"Housing, Communities & Local Government",PINS,14/01/2022,IT - Service Contracts,Digital Services,MHCLG,,Public Bodies,,5106278771,Daisy Circuits: Cathays Park Primary,HP2 4XN,"1,119.18",
"Housing, Communities & Local Government",PINS,14/01/2022,Physical Storage,Digital Services,MHCLG,,Public Bodies,,5106278771,Konica Device Storage,HP2 4XN,"1,200.00",
"Housing, Communities & Local Government",PINS,14/01/2022,Specialist Technical Support,Digital Services,HAYS SPECIALIST RECRUITMENT LTD,,Large,,5106278759,O365 specialist  ,NW1 2AF,"1,873.12",
"Housing, Communities & Local Government",PINS,14/01/2022,Specialist Technical Support,Digital Services,HAYS SPECIALIST RECRUITMENT LTD,,Large,,5106278765,Interaction Designer,NW1 2AF,"2,988.34",
"Housing, Communities & Local Government",PINS,14/01/2022,IT - Service Contracts,Digital Services,MHCLG,,Public Bodies,,5106278771,Daisy Circuits: TQH Primary Circuit,HP2 4XN,"6,514.65",
"Housing, Communities & Local Government",PINS,14/01/2022,IT - Service Contracts,Digital Services,MHCLG,,Public Bodies,,5106278771,Unified Support,HP2 4XN,"13,095.75",
"Housing, Communities & Local Government",PINS,14/01/2022,IT - Service Contracts,Digital Services,MHCLG,,Public Bodies,,5106278771,Zscaler Internet Security & Web Filterin,HP2 4XN,"18,039.00",
"Housing, Communities & Local Government",PINS,14/01/2022,IT - Service Contracts,Digital Services,MHCLG,,Public Bodies,,5106278771,Daisy Telephony: Single Charge Per Daisy,HP2 4XN,"21,505.68",
"Housing, Communities & Local Government",PINS,14/01/2022,IT - Service Contracts,Digital Services,MHCLG,,Public Bodies,,5106278771,Littlefish Service Desk,HP2 4XN,"47,081.79",
"Housing, Communities & Local Government",PINS,14/01/2022,IT - Service Contracts,Digital Services,MHCLG,,Public Bodies,,5106278771,MS Azure,HP2 4XN,"69,655.42",
"Housing, Communities & Local Government",PINS,14/01/2022,IT - Service Contracts,Digital Services,MHCLG,,Public Bodies,,5106278771,E5 Licenses,HP2 4XN,"90,570.90",
"Housing, Communities & Local Government",PINS,17/01/2022,Agency Staff,"Finance, Commercial & Business Support",HAYS SPECIALIST RECRUITMENT LTD,,Large,,2100098282,Agency Support Staff,NW1 2AF,"-2,399.40",
"Housing, Communities & Local Government",PINS,17/01/2022,Training,Human Resources,HOWARD DAVIS CONSULTANCY LTD,,Micro,,5106278787,Exe Coaching ,GL20 7SL,350.00,
"Housing, Communities & Local Government",PINS,17/01/2022,Agency Staff,Operations Group 1,REED SPECIALIST RECRUITMENT LTD,,Large,,5106278518,Agency Support Staff,SW20 0BA,380.98,
"Housing, Communities & Local Government",PINS,17/01/2022,IT Maintenance,Digital Services,Capito Ltd,,Small,,5106278879,6-month initial contract user charge ,EH54 8AS,500.00,
"Housing, Communities & Local Government",PINS,17/01/2022,Agency Staff,Operations Group 2,HAYS SPECIALIST RECRUITMENT LTD,,Large,,5106278803,Casework Officer  ,NW1 2AF,576.00,
"Housing, Communities & Local Government",PINS,17/01/2022,IT Maintenance,Digital Services,Capito Ltd,,Small,,5106278879,6-month print service ,EH54 8AS,650.00,
"Housing, Communities & Local Government",PINS,17/01/2022,Specialist Technical Support,Digital Services,HAYS SPECIALIST RECRUITMENT LTD,,Large,,5106278766,Data Engineer  ,NW1 2AF,"1,434.17",
"Housing, Communities & Local Government",PINS,17/01/2022,NSI Fees & Expenses,Inspectors Costs,GDPR REDACTION,,Data Not Provided,,5106278807,NSI Fees & Expenses,DE23 8DP,"1,565.20",
"Housing, Communities & Local Government",PINS,17/01/2022,NSI Fees & Expenses,Inspectors Costs,GDPR REDACTION,,Data Not Provided,,5106278866,NSI Fees & Expenses,DE23 8DP,"1,740.35",
"Housing, Communities & Local Government",PINS,17/01/2022,Agency Staff,"Finance, Commercial & Business Support",HAYS SPECIALIST RECRUITMENT LTD,,Large,,5106278660,Agency Support Staff,NW1 2AF,"2,399.40",
"Housing, Communities & Local Government",PINS,17/01/2022,Agency Staff,Change Portfolio Workstreams,HAYS SPECIALIST RECRUITMENT LTD,,Large,,5106278880,Agency Support Staff,NW1 2AF,"2,896.85",
"Housing, Communities & Local Government",PINS,17/01/2022,NSI Fees & Expenses,Inspectors Costs,GDPR REDACTION,,Micro,,5106278863,NSI Fees & Expenses,WR5 2AG,"3,208.31",
"Housing, Communities & Local Government",PINS,17/01/2022,Training,Change Portfolio Workstreams,UNIVERSITY OF BUCKINGHAM,,Data Not Provided,,5106278875,Year 3 course fees - VOCATIONAL TRAINING,MK18 1EG,"3,500.00",
"Housing, Communities & Local Government",PINS,17/01/2022,NSI Fees & Expenses,Inspectors Costs,GDPR REDACTION,,Micro,,5106278876,NSI Fees & Expenses,M33 6RG,"3,661.14",
"Housing, Communities & Local Government",PINS,18/01/2022,Online Database Information Retrieval,Innovation & Improvement,THOMSON REUTERS (PROFESSIONAL) UK L,,Large,,5106278904,Westlaw UK Services 2022,SP10 9AF,"-19,897.40",
"Housing, Communities & Local Government",PINS,18/01/2022,Agency Staff,"Finance, Commercial & Business Support",HAYS SPECIALIST RECRUITMENT LTD,,Large,,5106278901,Agency Support Staff,NW1 2AF,-479.88,
"Housing, Communities & Local Government",PINS,18/01/2022,NSI Fees & Expenses,Inspectors Costs,GDPR REDACTION,,Data Not Provided,,5106278922,NSI Fees & Expenses,DE72 3QP,420.00,
"Housing, Communities & Local Government",PINS,18/01/2022,NSI Fees & Expenses,LKD NSI,DURAMEN CONSULTING LTD,,Micro,,5106278913,NSI Fees & Expenses,TN27 0JW,545.10,
"Housing, Communities & Local Government",PINS,18/01/2022,NSI Fees & Expenses,LKD NSI,DURAMEN CONSULTING LTD,,Micro,,5106278917,NSI Fees & Expenses,TN27 0JW,545.10,
"Housing, Communities & Local Government",PINS,18/01/2022,Agency Staff,"Finance, Commercial & Business Support",REED SPECIALIST RECRUITMENT LTD,,Large,,5106278934,AA Storekeeper  ,SW20 0BA,549.23,
"Housing, Communities & Local Government",PINS,18/01/2022,NSI Fees & Expenses,LKD NSI,DURAMEN CONSULTING LTD,,Micro,,5106278915,NSI Fees & Expenses,TN27 0JW,563.46,
"Housing, Communities & Local Government",PINS,18/01/2022,NSI Fees & Expenses,LKD NSI,DURAMEN CONSULTING LTD,,Micro,,5106278918,NSI Fees & Expenses,TN27 0JW,563.46,
"Housing, Communities & Local Government",PINS,18/01/2022,NSI Fees & Expenses,LKD NSI,DURAMEN CONSULTING LTD,,Micro,,5106278919,NSI Fees & Expenses,TN27 0JW,563.46,
"Housing, Communities & Local Government",PINS,18/01/2022,Agency Staff,Operations Group 1,REED SPECIALIST RECRUITMENT LTD,,Large,,5106278419,Agency Support Staff,SW20 0BA,626.48,
"Housing, Communities & Local Government",PINS,18/01/2022,DEV Exp (AUC) Intngble Software Acq Cost,Digital Services,DIFRENT LTD,,Medium,,5106278907,PM/PA - Applications,E1 6JE,800.00,
"Housing, Communities & Local Government",PINS,18/01/2022,Specialist Technical Support,Operations Group 2,HAYS SPECIALIST RECRUITMENT LTD,,Large,,5106278761,Virtual Events Technical Support,NW1 2AF,899.32,
"Housing, Communities & Local Government",PINS,18/01/2022,Agency Staff,Director of Strategy,REED SPECIALIST RECRUITMENT LTD,,Large,,5106278908,PA Role ,SW20 0BA,"1,326.24",
"Housing, Communities & Local Government",PINS,18/01/2022,NSI Fees & Expenses,Inspectors Costs,GDPR REDACTION,,Micro,,5106278914,NSI Fees & Expenses,RH20 3LY,"2,145.45",
"Housing, Communities & Local Government",PINS,18/01/2022,NSI Fees & Expenses,LKD NSI,CHEC PLANNING LTD,,Micro,,5106278916,NSI Fees & Expenses,CB6 3PG,"2,238.06",
"Housing, Communities & Local Government",PINS,18/01/2022,Specialist Technical Support,Project Speed,Digi2al Limited???,,Medium,,5106278536,Discovery - end to end Digital DCOs,BN3 2FN,"34,713.00",
"Housing, Communities & Local Government",PINS,18/01/2022,DEV Exp (AUC) Intngble Software Acq Cost,Digital Services,DIFRENT LTD,,Medium,,5106278912,Applications Service - Beta Phase 1a/1b,E1 6JE,"50,510.00",
"Housing, Communities & Local Government",PINS,18/01/2022,Online Database Information Retrieval,Innovation & Improvement,THOMSON REUTERS (PROFESSIONAL) UK L,,Large,,5106278903,Westlaw UK Services 2022,SP10 9AF,"102,910.92",
"Housing, Communities & Local Government",PINS,19/01/2022,Agency Staff,Operations Group 1,REED SPECIALIST RECRUITMENT LTD,,Large,,5106278952,Agency Support Staff,SW20 0BA,253.98,
"Housing, Communities & Local Government",PINS,19/01/2022,Advertising,LKD Environment,TMP (UK) LIMITED,,Large,,5106278954,Statutory Advertising  ,W1T 7RQ,255.54,
"Housing, Communities & Local Government",PINS,19/01/2022,Agency Staff,Operations Group 1,REED SPECIALIST RECRUITMENT LTD,,Large,,5106278970,Agency Support Staff,SW20 0BA,380.98,
"Housing, Communities & Local Government",PINS,19/01/2022,Vehicle hire,"Finance, Commercial & Business Support",ENTERPRISE RENT-A-CAR,,Large,,5106278938,Repair damage to hire car,TW20 9FB,419.80,
"Housing, Communities & Local Government",PINS,19/01/2022,Agency Staff,Operations Group 1,HAYS SPECIALIST RECRUITMENT LTD,,Large,,5106278951,Agency Support Staff,NW1 2AF,432.00,
"Housing, Communities & Local Government",PINS,19/01/2022,Advertising,LKD Environment,TMP (UK) LIMITED,,Large,,5106278953,Statutory Advertising  ,W1T 7RQ,449.14,
"Housing, Communities & Local Government",PINS,19/01/2022,Agency Staff,"Finance, Commercial & Business Support",REED SPECIALIST RECRUITMENT LTD,,Large,,5106278961,Agency Support Staff,SW20 0BA,507.96,
"Housing, Communities & Local Government",PINS,19/01/2022,Agency Staff,Operations Group 1,REED SPECIALIST RECRUITMENT LTD,,Large,,5106278625,Agency Support Staff,SW20 0BA,626.48,
"Housing, Communities & Local Government",PINS,19/01/2022,Agency Staff,Human Resources,REED SPECIALIST RECRUITMENT LTD,,Large,,5106278898,HR Ops Team Leader,SW20 0BA,827.87,
"Housing, Communities & Local Government",PINS,19/01/2022,Specialist Technical Support,Digital Services,HAYS SPECIALIST RECRUITMENT LTD,,Large,,5106278948,Digital Trainer  ,NW1 2AF,"1,798.14",
"Housing, Communities & Local Government",PINS,19/01/2022,Specialist Technical Support,Digital Services,REED SPECIALIST RECRUITMENT LTD,,Large,,5106278894,Full Stack Software Developer ,SW20 0BA,"2,031.84",
"Housing, Communities & Local Government",PINS,19/01/2022,Agency Staff,Digital Services,HAYS SPECIALIST RECRUITMENT LTD,,Large,,5106278947,Supplier & Contracts Officer ,NW1 2AF,"2,283.50",
"Housing, Communities & Local Government",PINS,19/01/2022,Agency Staff,"Finance, Commercial & Business Support",HAYS SPECIALIST RECRUITMENT LTD,,Large,,5106278941,Agency Support Staff,NW1 2AF,"2,399.40",
"Housing, Communities & Local Government",PINS,19/01/2022,Specialist Technical Support,Digital Services,REED SPECIALIST RECRUITMENT LTD,,Large,,5106278891,Information Security Manager,SW20 0BA,"2,772.00",
"Housing, Communities & Local Government",PINS,19/01/2022,Specialist Technical Support,Change Portfolio Workstreams,REED SPECIALIST RECRUITMENT LTD,,Large,,5106278950,SAP Data Engineer,SW20 0BA,"3,036.00",
"Housing, Communities & Local Government",PINS,19/01/2022,Specialist Technical Support,Digital Services,REED SPECIALIST RECRUITMENT LTD,,Large,,5106278893,Full Stack Software Developer ,SW20 0BA,"3,386.40",
"Housing, Communities & Local Government",PINS,19/01/2022,Specialist Technical Support,Digital Services,HAYS SPECIALIST RECRUITMENT LTD,,Large,,5106278946,Interaction Designer,NW1 2AF,"3,735.42",
"Housing, Communities & Local Government",PINS,19/01/2022,Specialist Technical Support,Change Portfolio Workstreams,METHODS BUSINESS AND DIGITAL TECH,,Medium,,5106278973,Corporate Systems Delivery Manager,EC1N 8TS,"4,050.00",
"Housing, Communities & Local Government",PINS,19/01/2022,Specialist Technical Support,Digital Services,HAYS SPECIALIST RECRUITMENT LTD,,Large,,5106278939,Information Security Architect,NW1 2AF,"5,389.02",
"Housing, Communities & Local Government",PINS,20/01/2022,Agency Staff,"Finance, Commercial & Business Support",HAYS SPECIALIST RECRUITMENT LTD,,Large,,5106279033,Agency Support Staff,NW1 2AF,-959.76,
"Housing, Communities & Local Government",PINS,20/01/2022,NSI Fees & Expenses,Inspectors Costs,ELDNAR LTD,,Micro,,5106279014,NSI Fees & Expenses,DY12 2FB,420.00,
"Housing, Communities & Local Government",PINS,20/01/2022,Advertising,LKD Environment,TMP (UK) LIMITED,,Large,,5106279005,Statutory Advertising  ,W1T 7RQ,512.28,
"Housing, Communities & Local Government",PINS,20/01/2022,Advertising,LKD Environment,TMP (UK) LIMITED,,Large,,5106279006,Statutory Advertising  ,W1T 7RQ,540.95,
"Housing, Communities & Local Government",PINS,20/01/2022,Agency Staff,Digital Services,REED SPECIALIST RECRUITMENT LTD,,Large,,5106278925,Contract Support Officer  ,SW20 0BA,675.79,
"Housing, Communities & Local Government",PINS,20/01/2022,Advertising,Operations Group 2,TMP (UK) LIMITED,,Large,,5106278975,Statutory Advertising  ,W1T 7RQ,679.60,
"Housing, Communities & Local Government",PINS,20/01/2022,Advertising,LKD Environment,TMP (UK) LIMITED,,Large,,5106279013,Statutory Advertising  ,W1T 7RQ,"2,041.20",
"Housing, Communities & Local Government",PINS,20/01/2022,Specialist Technical Support,Operations Group 2,SANDERSON GOVERNMENT & DEFENCE,,Large,,5106279032,Virtual Events Technical Support,BS8 2QX,"2,400.00",
"Housing, Communities & Local Government",PINS,20/01/2022,NSI Fees & Expenses,Inspectors Costs,GDPR REDACTION,,Data Not Provided,,5106279015,NSI Fees & Expenses,LU1 1PP,"2,639.70",
"Housing, Communities & Local Government",PINS,20/01/2022,NSI Fees & Expenses,Inspectors Costs,GDPR REDACTION,,Data Not Provided,,5106279004,NSI Fees & Expenses,LU1 1PP,"3,187.98",
"Housing, Communities & Local Government",PINS,20/01/2022,Specialist Technical Support,Digital Services,HAYS SPECIALIST RECRUITMENT LTD,,Large,,5106278940,Data Engineer  ,NW1 2AF,"3,585.42",
"Housing, Communities & Local Government",PINS,20/01/2022,NSI Fees & Expenses,Inspectors Costs,GDPR REDACTION,,Small,,5106278979,NSI Fees & Expenses,TQ6 9RG,"4,000.04",
"Housing, Communities & Local Government",PINS,21/01/2022,Courier Services,LKD Estates,PARCELFORCE WORLDWIDE,,Large,,5106279039,Courier services 2021-2022,MK7 8LE,260.62,
"Housing, Communities & Local Government",PINS,21/01/2022,Office Supplies,"Finance, Commercial & Business Support",BANNER BUSINESS SUPPLIES LTD,,Large,,5106279065,Paper 2021-2022,S9 1XU,466.78,
"Housing, Communities & Local Government",PINS,21/01/2022,DEV Exp (AUC) Intngble Software Acq Cost,Digital Services,HAYS SPECIALIST RECRUITMENT LTD,,Large,,5106279057,Project support Officer ,NW1 2AF,533.61,
"Housing, Communities & Local Government",PINS,21/01/2022,Agency Staff,Operations Group 1,HAYS SPECIALIST RECRUITMENT LTD,,Large,,5106279042,Agency Support Staff,NW1 2AF,720.00,
"Housing, Communities & Local Government",PINS,21/01/2022,Agency Staff,Human Resources,HAYS SPECIALIST RECRUITMENT LTD,,Large,,5106279044,HR Ops Admin Officer ,NW1 2AF,899.64,
"Housing, Communities & Local Government",PINS,21/01/2022,Advertising,Operations Group 2,TMP (UK) LIMITED,,Large,,5106279051,Statutory Advertising  ,W1T 7RQ,"1,031.02",
"Housing, Communities & Local Government",PINS,21/01/2022,Office Supplies,"Finance, Commercial & Business Support",BANNER BUSINESS SUPPLIES LTD,,Large,,5106279066,Paper 2021-2022,S9 1XU,"1,166.94",
"Housing, Communities & Local Government",PINS,21/01/2022,Courier Services,LKD Estates,PARCELFORCE WORLDWIDE,,Large,,5106279038,Courier services 2021-2022,MK7 8LE,"2,083.28",
"Housing, Communities & Local Government",PINS,21/01/2022,Advertising,Operations Group 2,TMP (UK) LIMITED,,Large,,5106279050,Statutory Advertising  ,W1T 7RQ,"2,129.93",
"Housing, Communities & Local Government",PINS,21/01/2022,Specialist Technical Support,Digital Services,HAYS SPECIALIST RECRUITMENT LTD,,Large,,5106279043,O365 specialist  ,NW1 2AF,"2,497.49",
"Housing, Communities & Local Government",PINS,21/01/2022,NSI Fees & Expenses,Inspectors Costs,GDPR REDACTION,,Micro,,5106279048,NSI Fees & Expenses,TA14 6PT,"2,869.40",
"Housing, Communities & Local Government",PINS,21/01/2022,Agency Staff,Change Portfolio Workstreams,HAYS SPECIALIST RECRUITMENT LTD,,Large,,5106279046,Agency Support Staff,NW1 2AF,"3,621.06",
"Housing, Communities & Local Government",PINS,21/01/2022,Specialist Technical Support,Change Portfolio Workstreams,SANDERSON GOVERNMENT & DEFENCE,,Large,,5106279049,Data Architect  ,BS8 2QX,"13,423.50",
"Housing, Communities & Local Government",PINS,21/01/2022,DEV Exp (AUC) Intngble Software Acq Cost,Digital Services,DIFRENT LTD,,Medium,,5106279063,Appeals Beta Q3 2021/22,E1 6JE,"41,030.00",
"Housing, Communities & Local Government",PINS,21/01/2022,DEV Exp (AUC) Intngble Software Acq Cost,Digital Services,DIFRENT LTD,,Medium,,5106279047,Applications Service - Beta Phase 1a/1b,E1 6JE,"48,330.00",
"Housing, Communities & Local Government",PINS,24/01/2022,NSI Fees & Expenses,Inspectors Costs,ELDNAR LTD,,Micro,,5106279142,NSI Fees & Expenses,DY12 2FB,510.00,
"Housing, Communities & Local Government",PINS,24/01/2022,Agency Staff,Operations Group 2,HAYS SPECIALIST RECRUITMENT LTD,,Large,,5106279127,Casework Officer  ,NW1 2AF,720.00,
"Housing, Communities & Local Government",PINS,24/01/2022,Agency Staff,Resourcing & Process,HAYS SPECIALIST RECRUITMENT LTD,,Large,,5106279147,Agency Support Staff,NW1 2AF,720.00,
"Housing, Communities & Local Government",PINS,24/01/2022,Specialist Technical Support,Digital Services,HAYS SPECIALIST RECRUITMENT LTD,,Large,,5106279126,Apps Ops Engineer ,NW1 2AF,"1,104.86",
"Housing, Communities & Local Government",PINS,24/01/2022,Specialist Technical Support,Digital Services,HAYS SPECIALIST RECRUITMENT LTD,,Large,,5106279128,Apps Ops Engineer ,NW1 2AF,"1,381.08",
"Housing, Communities & Local Government",PINS,24/01/2022,Specialist Technical Support,Digital Services,STANCE GLOBAL LTD,,Micro,,5106279145,CTO as a Service Digital,EC1A 2BN,"3,600.00",
"Housing, Communities & Local Government",PINS,24/01/2022,Specialist Technical Support,Digital Operating Model,STANCE GLOBAL LTD,,Micro,,5106279145,CTO as a Service Change Portfolio,EC1A 2BN,"31,200.00",
"Housing, Communities & Local Government",PINS,24/01/2022,Specialist Technical Support,Innovation,Digi2al Limited???,,Medium,,5106279148,Knowledge Innovation Project Discovery,BN3 2FN,"71,761.50",
"Housing, Communities & Local Government",PINS,25/01/2022,Vehicle hire,"Finance, Commercial & Business Support",ENTERPRISE RENT-A-CAR,,Large,,5106279155,Repair damage to hire car,TW20 9FB,414.70,
"Housing, Communities & Local Government",PINS,25/01/2022,Agency Staff,"Finance, Commercial & Business Support",REED SPECIALIST RECRUITMENT LTD,,Large,,5106279170,AA Storekeeper  ,SW20 0BA,549.23,
"Housing, Communities & Local Government",PINS,25/01/2022,NSI Fees & Expenses,LKD NSI,GDPR REDACTION,,Data Not Provided,,5106279182,NSI Fees & Expenses,RG40 5YR,"1,131.45",
"Housing, Communities & Local Government",PINS,25/01/2022,NSI Fees & Expenses,LKD NSI,GDPR REDACTION,,Data Not Provided,,5106279175,NSI Fees & Expenses,RH1 4HW,"1,584.00",
"Housing, Communities & Local Government",PINS,25/01/2022,Agency Staff,Director of Strategy,REED SPECIALIST RECRUITMENT LTD,,Large,,5106279172,PA Role ,SW20 0BA,"1,635.70",
"Housing, Communities & Local Government",PINS,25/01/2022,Agency Staff,Human Resources,REED SPECIALIST RECRUITMENT LTD,,Large,,5106279169,HR Ops Team Leader,SW20 0BA,"1,669.25",
"Housing, Communities & Local Government",PINS,25/01/2022,NSI Fees & Expenses,Inspectors Costs,GDPR REDACTION,,Micro,,5106279179,NSI Fees & Expenses,BB4 8TB,"1,721.52",
"Housing, Communities & Local Government",PINS,25/01/2022,Specialist Technical Support,Digital Services,REED SPECIALIST RECRUITMENT LTD,,Large,,5106279167,Full Stack Software Developer ,SW20 0BA,"3,386.40",
"Housing, Communities & Local Government",PINS,25/01/2022,NSI Fees & Expenses,Inspectors Costs,GDPR REDACTION,,Data Not Provided,,5106279185,NSI Fees & Expenses,WN1 2RU,"3,435.10",
"Housing, Communities & Local Government",PINS,25/01/2022,Specialist Technical Support,Digital Services,REED SPECIALIST RECRUITMENT LTD,,Large,,5106279171,Information Security Manager,SW20 0BA,"3,465.00",
"Housing, Communities & Local Government",PINS,25/01/2022,Specialist Technical Support,Change Portfolio Workstreams,REED SPECIALIST RECRUITMENT LTD,,Large,,5106279165,SAP Data Engineer,SW20 0BA,"3,795.00",
"Housing, Communities & Local Government",PINS,26/01/2022,Training,Human Resources,QCG Ltd,,Micro,,5106279208,Introduction to Reward,SE11 5DP,450.00,
"Housing, Communities & Local Government",PINS,26/01/2022,Training,Human Resources,QCG Ltd,,Micro,,5106279209,Introduction to Reward,SE11 5DP,450.00,
"Housing, Communities & Local Government",PINS,26/01/2022,Training,Human Resources,QCG Ltd,,Micro,,5106279210,Introduction to Reward,SE11 5DP,450.00,
"Housing, Communities & Local Government",PINS,26/01/2022,NSI Fees & Expenses,Inspectors Costs,ELDNAR LTD,,Micro,,5106279224,NSI Fees & Expenses,DY12 2FB,510.00,
"Housing, Communities & Local Government",PINS,26/01/2022,Agency Staff,"Finance, Commercial & Business Support",REED SPECIALIST RECRUITMENT LTD,,Large,,5106279230,Commercial EO  ,SW20 0BA,534.34,
"Housing, Communities & Local Government",PINS,26/01/2022,Agency Staff,"Finance, Commercial & Business Support",REED SPECIALIST RECRUITMENT LTD,,Large,,5106279159,Agency Support Staff,SW20 0BA,622.25,
"Housing, Communities & Local Government",PINS,26/01/2022,Mobile phone costs,Digital Services,DAISY CORPORATE SERVICES TRADING LT,,Large,,5106279222,MiFi Devices,BB9 5SR,786.00,
"Housing, Communities & Local Government",PINS,26/01/2022,Agency Staff,Digital Services,REED SPECIALIST RECRUITMENT LTD,,Large,,5106279161,Contract Support Officer  ,SW20 0BA,847.60,
"Housing, Communities & Local Government",PINS,26/01/2022,Specialist Technical Support,Change Portfolio Workstreams,HAYS SPECIALIST RECRUITMENT LTD,,Large,,5106279192,Business Analyst,NW1 2AF,"1,234.03",
"Housing, Communities & Local Government",PINS,26/01/2022,Specialist Technical Support,Change Portfolio Workstreams,HAYS SPECIALIST RECRUITMENT LTD,,Large,,5106279193,Business Analyst,NW1 2AF,"1,234.04",
"Housing, Communities & Local Government",PINS,26/01/2022,Specialist Technical Support,Digital Services,HAYS SPECIALIST RECRUITMENT LTD,,Large,,5106279197,Digital Trainer  ,NW1 2AF,"1,438.51",
"Housing, Communities & Local Government",PINS,26/01/2022,NSI Fees & Expenses,Inspectors Costs,GDPR REDACTION,,Data Not Provided,,5106279218,NSI Fees & Expenses,IP10 0ET,"2,015.85",
"Housing, Communities & Local Government",PINS,26/01/2022,Specialist Technical Support,Planning Reform,HAYS SPECIALIST RECRUITMENT LTD,,Large,,5106279232,Technical Business Analyst,NW1 2AF,"2,674.68",
"Housing, Communities & Local Government",PINS,26/01/2022,Specialist Technical Support,Planning Reform,HAYS SPECIALIST RECRUITMENT LTD,,Large,,5106279234,Technical Business Analyst,NW1 2AF,"2,674.68",
"Housing, Communities & Local Government",PINS,26/01/2022,Agency Staff,Digital Services,HAYS SPECIALIST RECRUITMENT LTD,,Large,,5106279204,Supplier & Contracts Officer ,NW1 2AF,"2,854.38",
"Housing, Communities & Local Government",PINS,26/01/2022,Specialist Technical Support,Change Portfolio Workstreams,HAYS SPECIALIST RECRUITMENT LTD,,Large,,5106279194,Business Analyst,NW1 2AF,"2,930.83",
"Housing, Communities & Local Government",PINS,26/01/2022,NSI Fees & Expenses,Inspectors Costs,GDPR REDACTION,,Micro,,5106279233,NSI Fees & Expenses,CH7 5NL,"3,450.00",
"Housing, Communities & Local Government",PINS,26/01/2022,Specialist Technical Support,Digital Services,HAYS SPECIALIST RECRUITMENT LTD,,Large,,5106279199,Data Engineer  ,NW1 2AF,"3,585.42",
"Housing, Communities & Local Government",PINS,26/01/2022,NSI Fees & Expenses,Inspectors Costs,GDPR REDACTION,,Micro,,5106279217,NSI Fees & Expenses,WR5 2AG,"3,624.02",
"Housing, Communities & Local Government",PINS,26/01/2022,Specialist Technical Support,Digital Services,HAYS SPECIALIST RECRUITMENT LTD,,Large,,5106279200,Interaction Designer,NW1 2AF,"3,735.42",
"Housing, Communities & Local Government",PINS,26/01/2022,Specialist Technical Support,Digital Services,HAYS SPECIALIST RECRUITMENT LTD,,Large,,5106279207,Information Security Architect,NW1 2AF,"4,311.22",
"Housing, Communities & Local Government",PINS,26/01/2022,Specialist Technical Support,Change Portfolio Workstreams,MICHAEL PAGE INTN'TL RECRUITMENT LT,,Large,,5106279219,Recruitment Services,SL1 1QP,"4,397.33",
"Housing, Communities & Local Government",PINS,27/01/2022,Specialist Technical Support,Operations Group 2,HAYS SPECIALIST RECRUITMENT LTD,,Large,,5106279303,Virtual Events Technical Support,NW1 2AF,"-1,498.86",
"Housing, Communities & Local Government",PINS,27/01/2022,Conferences and Meeting Facilities,Inspectors Costs,YORK MEDICAL SOCIETY,,Not assigned,,5106279241,Meeting Room Hire,YO1 8AW,255.00,
"Housing, Communities & Local Government",PINS,27/01/2022,DEV Exp (AUC) Intngble Software Acq Cost,Digital Services,HAYS SPECIALIST RECRUITMENT LTD,,Large,,5106279244,Project support Officer ,NW1 2AF,533.61,
"Housing, Communities & Local Government",PINS,27/01/2022,Specialist Technical Support,Operations Group 2,HAYS SPECIALIST RECRUITMENT LTD,,Large,,5106278943,Virtual Events Technical Support,NW1 2AF,"1,498.86",
"Housing, Communities & Local Government",PINS,27/01/2022,Specialist Technical Support,Operations Group 2,HAYS SPECIALIST RECRUITMENT LTD,,Large,,5106279205,Virtual Events Technical Support,NW1 2AF,"1,498.86",
"Housing, Communities & Local Government",PINS,27/01/2022,Specialist Technical Support,Operations Group 2,HAYS SPECIALIST RECRUITMENT LTD,,Large,,5106279304,Virtual Events Technical Support,NW1 2AF,"1,498.86",
"Housing, Communities & Local Government",PINS,27/01/2022,Training,Human Resources,Ernst & Young LLP,,Large,,5106279237,Senior Management Coaching,SE1 2AF,"1,596.00",
"Housing, Communities & Local Government",PINS,27/01/2022,Payroll Services,Human Resources,CGI IT UK LIMITED,,Large,,5106279239,Payroll Service 2021/21,CF31 9AP,"1,814.70",
"Housing, Communities & Local Government",PINS,27/01/2022,NSI Fees & Expenses,Inspectors Costs,GDPR REDACTION,,Micro,,5106279263,NSI Fees & Expenses,CH7 5NL,"3,498.00",
"Housing, Communities & Local Government",PINS,27/01/2022,DEV Exp (AUC) Intngble Software Acq Cost,Digital Services,DIFRENT LTD,,Medium,,5106279257,Appeals Beta  Q3 2021/22,E1 6JE,"26,862.50",
"Housing, Communities & Local Government",PINS,27/01/2022,DEV Exp (AUC) Intngble Software Acq Cost,Digital Services,DIFRENT LTD,,Medium,,5106279257,Appeals Beta ,E1 6JE,"71,492.50",
"Housing, Communities & Local Government",PINS,28/01/2022,Agency Staff,Human Resources,HAYS SPECIALIST RECRUITMENT LTD,,Large,,5106279300,HR Ops Admin Officer ,NW1 2AF,359.86,
"Housing, Communities & Local Government",PINS,28/01/2022,Courier Services,LKD Estates,ROYAL MAIL,,Large,,5106279305,Postal Services,S49 1HQ,535.61,
"Housing, Communities & Local Government",PINS,28/01/2022,Agency Staff,Operations Group 1,HAYS SPECIALIST RECRUITMENT LTD,,Large,,5106279272,Agency Support Staff,NW1 2AF,720.00,
"Housing, Communities & Local Government",PINS,28/01/2022,Training,Human Resources,Ernst & Young LLP,,Large,,5106279267,Senior Management Coaching,SE1 2AF,"1,074.00",
"Housing, Communities & Local Government",PINS,28/01/2022,NSI Fees & Expenses,Inspectors Costs,GDPR REDACTION,,Data Not Provided,,5106279283,NSI Fees & Expenses,S36 6HT,"1,835.95",
"Housing, Communities & Local Government",PINS,28/01/2022,NSI Fees & Expenses,LKD NSI,PJS DEVELOPMENT SOLUTIONS LTD,,Micro,,5106279282,NSI Fees & Expenses,GL2 0DU,"2,883.00",
"Housing, Communities & Local Government",PINS,28/01/2022,Agency Staff,Change Portfolio Workstreams,HAYS SPECIALIST RECRUITMENT LTD,,Large,,5106279273,Agency Support Staff,NW1 2AF,"3,621.06",
"Housing, Communities & Local Government",PINS,31/01/2022,Agency Staff,Operations Group 2,HAYS SPECIALIST RECRUITMENT LTD,,Large,,5106279367,Casework Officer  ,NW1 2AF,720.00,
"Housing, Communities & Local Government",PINS,31/01/2022,Specialist Technical Support,Digital Services,HAYS SPECIALIST RECRUITMENT LTD,,Large,,5106279366,Apps Ops Engineer ,NW1 2AF,"1,381.08",
"Housing, Communities & Local Government",PINS,31/01/2022,NSI Fees & Expenses,Inspectors Costs,GDPR REDACTION,,Micro,,5106279276,NSI Fees & Expenses,DE4 2JP,"1,871.76",
"Housing, Communities & Local Government",PINS,31/01/2022,Agency Staff,"Finance, Commercial & Business Support",HAYS SPECIALIST RECRUITMENT LTD,,Large,,5106279375,Agency Support Staff,NW1 2AF,"1,919.52",
"Housing, Communities & Local Government",PINS,31/01/2022,NSI Fees & Expenses,Inspectors Costs,GDPR REDACTION,,Micro,,5106279386,NSI Fees & Expenses,DE4 2JP,"1,987.46",
"Housing, Communities & Local Government",PINS,31/01/2022,NSI Fees & Expenses,LKD NSI,GDPR REDACTION,,Small,,5106279373,NSI Fees & Expenses,DN14 6JU,"2,281.34",
"Housing, Communities & Local Government",PINS,31/01/2022,Agency Staff,"Finance, Commercial & Business Support",HAYS SPECIALIST RECRUITMENT LTD,,Large,,5106279202,Agency Support Staff,NW1 2AF,"2,399.40",
"Housing, Communities & Local Government",PINS,31/01/2022,NSI Fees & Expenses,Inspectors Costs,GDPR REDACTION,,Data Not Provided,,5106279390,NSI Fees & Expenses,CB3 0HS,"2,739.90",
"Housing, Communities & Local Government",PINS,31/01/2022,Legal Fees,Innovation & Improvement,GOVERNMENT LEGAL DEPT,,Public Bodies,,5106279376,Disbursements,WC2B 4TS,"20,236.16",
"Housing, Communities & Local Government",PINS,31/01/2022,Legal Fees,Innovation & Improvement,GOVERNMENT LEGAL DEPT,,Public Bodies,,5106279376,Fees & Charges,WC2B 4TS,"62,021.30",
